Cogmind - Beta 10.2 @@@ ROGUE MODE // 2021.12.24 @ 21:21:12 Player: DDRAGON Result: Destroyed by D-53 Grenadier with Mini Grenade Launcher Performance ------------- Evolutions (0) 0 Regions Visited (4) 800 Robots Destroyed (8) 40 Value Destroyed (165) 165 Prototype IDs (2) 40 Alien Tech Used (0) 0 Bonus (300) 300 TOTAL SCORE: 1345 Bonus ------- Aligned with FarCom 300 Cogmind --------- Core Integrity 0/250 Matter 160/300 Energy 525/525 System Corruption 0% Temperature Cool (50) Movement Hovering (116) Ox1 Location -9/Mines Parts ------- > --- POWER (1) -------- Light Ion Engine > --- PROPULSION (2) --- Hover Unit Hover Unit > --- UTILITY (2) ------ Medium Storage Unit High-capacity Battery > --- WEAPON (2) ------- (None) > --- INVENTORY (8) ---- Improved Heat Sink High-capacity Battery (400) Sensor Drone Bay (20/20) Peak State ------------ > --- POWER ------------ Ion Engine > --- PROPULSION ------- Hover Unit Hover Unit > --- UTILITY ---------- Small Storage Unit Sensor Drone Bay > --- WEAPON ----------- Assault Rifle Light Assault Rifle > --- INVENTORY -------- Light Ion Engine Light Ion Engine Hover Unit Hover Unit High-capacity Battery [Rating: 14] Favorites ----------- Power Light Ion Engine Engine Light Ion Engine Propulsion Hover Unit Wheel Compact Wheel Hover Unit Hover Unit Utility Small Storage Unit Device Sensor Drone Bay Storage Small Storage Unit Protection Light Armor Plating Weapon Assault Rifle Energy Cannon Guided Plasma Cannon Ballistic Gun Assault Rifle Build | -11 -10 -10 -10 -9 ------- Run | Scr Mat Min Exi Min Slots Evolved . | . . . . . Power . | . . . . . Propulsion . | . . . . . Utility . | . . . . . Weapon . | . . . . . Parts Attached 22 | 5 6 4 7 . Power 3 | 1 . 1 1 . Engine 3 | 1 . 1 1 . Core . | . . . . . Reactor . | . . . . . Propulsion 7 | 2 3 . 2 . Treads . | . . . . . Leg . | . . . . . Wheel 3 | 2 1 . . . Hover 4 | . 2 . 2 . Flight . | . . . . . Utility 8 | 1 1 3 3 . Device 2 | . . 1 1 . Storage 5 | 1 . 2 2 . Processor . | . . . . . Hackware . | . . . . . Protection 1 | . 1 . . . Artifact . | . . . . . Weapon 4 | 1 2 . 1 . Energy Gun . | . . . . . Energy Cannon 1 | . . . 1 . Ballistic Gun 3 | 1 2 . . . Ballistic Cannon . | . . . . . Launcher . | . . . . . Special Weapon . | . . . . . Impact Weapon . | . . . . . Slashing Weapon . | . . . . . Piercing Weapon . | . . . . . Special Melee Weapon . | . . . . . Unidentified Prototypes 2 | . . 1 1 . Parts Lost 6 | . . 5 . 1 Power 1 | . . 1 . . Propulsion 2 | . . 2 . . Utility . | . . . . . Weapon 3 | . . 2 . 1 Highest Loss Streak 3 | . . 3 . 1 Average Slot Usage (%) 70 | . 93 50 79 85 Engine 13 | . 14 13 14 14 Wheel 6 | . 23 . . . Hover 12 | . 2 6 28 28 Storage 18 | . 14 14 27 28 Protection 3 | . 13 . . . Energy Cannon 2 | . . . 8 14 Ballistic Gun 13 | . 24 15 . . Naked Turns . | . . . . . Heaviest Build 33 | 11 15 26 33 25 Greatest Support 32 | 26 32 12 12 12 Greatest Overweight (x) 6 | . 4 6 2 2 Average Overweight (x) 1 | . . 1 1 2 Largest Inventory Capacity 12 | 6 6 12 10 8 Average Capacity 7 | 5 6 7 9 8 Most Carried 7 | 2 6 7 5 3 Average Carried 4 | . 3 5 2 3 Final Capacity 10 | 6 6 10 8 8 Final Carried 6 | 1 5 6 3 3 Class Distribution -------------------- 100% | Mutant Dominant Class ---------------- Mutant | -10/Materials Mutant | -10/Mines Mutant | -10/Exiles Mutant | -9/Mines Resources | -11 -10 -10 -10 -9 ----------- Run | Scr Mat Min Exi Min Matter Collected 368 | 81 176 111 . . Remotely . | . . . . . Salvage Created 221 | . 131 90 . . Parts 15 | . 12 3 . . Haulers Intercepted . | . . . . . Recyclers Shooed . | . . . . . Parts Field Recycled . | . . . . . Retrieved Matter . | . . . . . Parts Self-Destructed . | . . . . . Prevented . | . . . . . Kills | -11 -10 -10 -10 -9 ------- Run | Scr Mat Min Exi Min Combat Hostiles Destroyed 8 | . 6 2 . . Guns 8 | . 6 2 . . Classes Destroyed 2 | . 2 . . . Swarmer 5 | . 5 . . . Grunt 3 | . 1 2 . . Best Kill Streak 3 | . 3 1 . . Combat Bots Only 3 | . 3 1 . . Max Kills in Single Turn 1 | . 1 1 . . Gunslinging . | . . . . . Exploded . | . . . . . Melee . | . . . . . Uniques/NPCs Destroyed . | . . . . . Combat | -11 -10 -10 -10 -9 -------- Run | Scr Mat Min Exi Min Damage Taken 982 | . 245 476 . 261 Core 255 | . 40 149 . 66 Absorbed by Shields . | . . . . . Core Remaining (%) 100 | 100 . . . . Volleys Fired 43 | . 22 18 . 3 Largest 2 | . 2 2 . 1 Hottest 120 | . 40 40 . 120 Shots Fired 56 | . 27 26 . 3 Gun 53 | . 27 26 . . Cannon 3 | . . . . 3 Launcher . | . . . . . Special . | . . . . . Kinetic 53 | . 27 26 . . Thermal 3 | . . . . 3 Explosive . | . . . . . Electromagnetic . | . . . . . Robot Hit Streak 10 | . 5 8 . 10 Robot Miss Streak 3 | . 3 3 . . Penetration Max . | . . . . . Secondary Targets . | . . . . . Shots Hit Robots 33 | . 15 16 . 2 Core Hits 14 | . 8 5 . 1 Critical Hits 1 | . 1 . . . Critical Kills 1 | . 1 . . . Critical Parts Destroyed . | . . . . . Melee Attacks . | . . . . . Impact . | . . . . . Slashing . | . . . . . Piercing . | . . . . . Sneak Attacks . | . . . . . Combat Hostiles . | . . . . . Follow-up Attacks . | . . . . . Damage Inflicted 453 | . 200 184 . 69 Guns 370 | . 186 184 . . Cannons 65 | . . . . 65 Explosions . | . . . . . Melee . | . . . . . Ramming 18 | . 14 . . 4 Kinetic 370 | . 186 184 . . Thermal 65 | . . . . 65 Explosive . | . . . . . Electromagnetic . | . . . . . Impact . | . . . . . Slashing . | . . . . . Piercing . | . . . . . Highest Corruption . | . . . . . Average Corruption . | . . . . . Corruption Purged . | . . . . . Overload Shots . | . . . . . Overflow Damage . | . . . . . Projectiles . | . . . . . Explosions . | . . . . . Melee . | . . . . . Knockbacks . | . . . . . Impact . | . . . . . Kinetic . | . . . . . Secondary . | . . . . . Self-Inflicted Damage 8 | . 6 . . 2 Shots . | . . . . . Rammed 5 | . 4 . . 1 Targets Rammed 5 | . 4 . . 1 Kicked . | . . . . . Crushed . | . . . . . Highest Temperature 170 | . 18 52 . 170 Average Temperature 38 | . 8 21 . 78 Received Heat Transfer 342 | . 12 276 . 54 Siege Activations . | . . . . . Robots Corrupted . | . . . . . Combat Hostiles . | . . . . . Parts Fried . | . . . . . Impact Corruptions . | . . . . . Robots Melted . | . . . . . Combat Hostiles . | . . . . . Parts Melted . | . . . . . Heat Transferred 160 | . . . . 160 Parts Sabotaged . | . . . . . Parts Stolen . | . . . . . Parts Stripped . | . . . . . Power Chain Reactions . | . . . . . Missiles Intercepted . | . . . . . Alert | -11 -10 -10 -10 -9 ------- Run | Scr Mat Min Exi Min Peak Influence 195 | . 195 95 . 30 Initial 75 | . . 75 . . Average 74 | . 93 71 . 21 Maximum Alert Level . | . . . . . Low Security (%) 100 | 100 100 100 . 100 Level 1 . | . . . . . Level 2 . | . . . . . Level 3 . | . . . . . Level 4 . | . . . . . Level 5 . | . . . . . High Security . | . . . . . Max Security . | . . . . . Squads Dispatched 1 | . 1 . . . Investigation . | . . . . . Extermination . | . . . . . Reinforcement 1 | . 1 . . . Assault . | . . . . . Garrison . | . . . . . Intercept . | . . . . . Construction Impeded . | . . . . . Haulers Reinforced . | . . . . . Stealth | -11 -10 -10 -10 -9 --------- Run | Scr Mat Min Exi Min Distress Signals . | . . . . . Communications Jammed . | . . . . . Distress Signals . | . . . . . Times Spotted 36 | . 13 4 . 19 Peak Tracking Total 22 | . 4 2 . 22 Tactical Retreats 1 | . . . . 1 Traps | -11 -10 -10 -10 -9 ------- Run | Scr Mat Min Exi Min Traps Triggered . | . . . . . Indirectly . | . . . . . Trap Hack Attempts . | . . . . . Triggered . | . . . . . Disarmed . | . . . . . Reprogrammed . | . . . . . Reused . | . . . . . Traps Extracted . | . . . . . Installed . | . . . . . Triggered . | . . . . . Machines | -11 -10 -10 -10 -9 ---------- Run | Scr Mat Min Exi Min Machines Disabled . | . . . . . Max in Single Turn . | . . . . . Machines Sabotaged . | . . . . . Garrisons Compromised . | . . . . . Overloaded Fab Kills . | . . . . . Fab Network Shutdowns . | . . . . . Hacking | -11 -10 -10 -10 -9 --------- Run | Scr Mat Min Exi Min Machines Accessed 2 | . 1 1 . . Terminals 1 | . 1 . . . Fabricators . | . . . . . Repair Stations . | . . . . . Recycling Units . | . . . . . Scanalyzers . | . . . . . Garrison Access . | . . . . . Total Hacks 3 | . 2 1 . . Successful 2 | . 1 1 . . Failed 1 | . 1 . . . Catastrophic 1 | . 1 . . . Database Lockouts . | . . . . . Manual 1 | . . . 1 . Terminals 2 | . 2 . . . Fabricators . | . . . . . Repair Stations . | . . . . . Recycling Units . | . . . . . Scanalyzers . | . . . . . Garrison Access . | . . . . . Terminal Hacks 2 | . 1 1 . . Open Door 1 | . . 1 . . Emergency Access Points 1 | . 1 . . . Fabricator Hacks . | . . . . . Repair Station Hacks . | . . . . . Recycling Unit Hacks . | . . . . . Scanalyzer . | . . . . . Garrison Access Hacks . | . . . . . Unauthorized Hacks . | . . . . . Terminals . | . . . . . Fabricators . | . . . . . Repair Stations . | . . . . . Recycling Units . | . . . . . Scanalyzers . | . . . . . Garrison Access . | . . . . . Data Cores Recovered . | . . . . . Used . | . . . . . Hacking Detections 1 | . 1 . . . Full Trace Events . | . . . . . Feedback Events . | . . . . . Feedback Blocked . | . . . . . Robot Schematics Acquired . | . . . . . Robots Built . | . . . . . Matter . | . . . . . Time . | . . . . . Total Robot Build Rating . | . . . . . Part Schematics Acquired . | . . . . . Parts Built . | . . . . . Matter . | . . . . . Time . | . . . . . Total Part Build Rating . | . . . . . Parts Repaired . | . . . . . Time . | . . . . . Parts Recycled . | . . . . . Recycled Matter . | . . . . . Retrieved Matter . | . . . . . Retrieved Components . | . . . . . Parts Scanalyzed . | . . . . . Part Schematics Acquired . | . . . . . Parts Damaged . | . . . . . Bothacking | -11 -10 -10 -10 -9 ------------ Run | Scr Mat Min Exi Min Used RIF Installer . | . . . . . Robots Hacked . | . . . . . Non-combat . | . . . . . Combat . | . . . . . Robot Hacks Applied . | . . . . . Relay Couplers Released . | . . . . . Robots Rewired . | . . . . . Allies Hacked . | . . . . . Hacks Repelled . | . . . . . Allies | -11 -10 -10 -10 -9 -------- Run | Scr Mat Min Exi Min Total Allies . | . . . . . Largest Group . | . . . . . Highest-Rated Group . | . . . . . Highest-Rated Ally . | . . . . . Total Orders . | . . . . . Ally Attacks . | . . . . . Total Damage . | . . . . . Kills . | . . . . . Allies Corrupted . | . . . . . Allies Melted . | . . . . . Intel | -11 -10 -10 -10 -9 ------- Run | Scr Mat Min Exi Min Robot Analysis Total . | . . . . . Derelict Logs Recovered 1 | . . 1 . . Drone Launches . | . . . . . Drone Recoveries . | . . . . . Exploration | -11 -10 -10 -10 -9 ------------- Run | Scr Mat Min Exi Min Turns Passed 1235 | 41 317 497 358 22 Spaces Moved 808 | 36 237 291 236 8 Core 194 | 6 3 185 . . Treads . | . . . . . Legs . | . . . . . Wheels 228 | 30 198 . . . Hover 386 | . 36 106 236 8 Flight . | . . . . . Fastest Speed 50 | 50 56 56 116 176 Average Speed 131 | 83 96 152 147 176 Slowest Speed 350 | 90 250 350 176 176 Overloaded Moves . | . . . . . Propulsion Burnouts . | . . . . . Robots Hopped . | . . . . . Cave-ins Triggered . | . . . . . Exploration Rate (%) 37 | 5 43 71 60 7 Regions Visited 4 Branch Regions 3 Pre-discovered Areas . | . . . . . Known Exits Taken . | . . . . . Unknown Exits Taken 4 | 1 1 1 1 . Scrap Searched 1 | . . 1 . . Spaces Dug . | . . . . . Terrain Destroyed 1 | . . . . 1 Melee . | . . . . . Projectile 1 | . . . . 1 AOE . | . . . . . Terrain Rammed . | . . . . . Walls Destroyed . | . . . . . Machines Disabled . | . . . . . Actions | -11 -10 -10 -10 -9 --------- Run | Scr Mat Min Exi Min Total 933 | 46 304 324 247 12 Wait 14 | . 14 . . . Move 804 | 35 236 290 235 8 Hop . | . . . . . Pick Up 26 | 6 12 5 3 . Fast Attach . | . . . . . Attach 21 | 5 6 3 7 . Detach 7 | . 3 3 1 . Swap 1 | . . 1 . . Drop 12 | . 7 4 1 . Fire 43 | . 22 18 . 3 Melee . | . . . . . Ram 5 | . 4 . . 1 Kick . | . . . . . Crush . | . . . . . Escape Stasis . | . . . . . Rewire . | . . . . . Trap . | . . . . . Miscellaneous . | . . . . . Route ------- -11/Scrapyard -10/Materials -10/Mines (discovered 2 exits: Mat / *Exi) -10/Exiles -9/Mines History --------- Turn | Location | Event 2 | -11/Scrapyard | Discovered new exit (range 16) 42 | -11/Scrapyard | Entered Materials 277 | -10/Materials | Discovered new exit (range 11) 300 | -10/Materials | Build established: Mutant 359 | -10/Materials | Entered Mines 364 | -10/Mines | Found the Drone Emporium 369 | -10/Mines | Found Prototype Device 370 | -10/Mines | Identified Sensor Drone Bay 435 | -10/Mines | Identified exit to Materials 505 | -10/Mines | Lost 3 parts (2n1w) 844 | -10/Mines | Deemed a non-threat by the Exiles lab entrance 844 | -10/Mines | Discovered new exit (range 5) 845 | -10/Mines | Core integrity fell below 50% 856 | -10/Mines | Entered Exiles 890 | -10/Exiles | Met 8R-AWN 910 | -10/Exiles | Met EX-HEX 941 | -10/Exiles | Met EX-BIN 956 | -10/Exiles | Aligned with FarCom system 957 | -10/Exiles | Given EX-Vault access code 986 | -10/Exiles | Opened EX-Vault 992 | -10/Exiles | Found Prototype Energy Cannon 993 | -10/Exiles | Identified Gui. Plasma Cannon 1031 | -10/Exiles | Warned to stay clear of 0b10 Research branches 1085 | -10/Exiles | Met EX-DEC 1193 | -10/Exiles | Discovered new exit (range 14) 1214 | -10/Exiles | Left Exiles lab with Gui. Plasma Cannon 1214 | -10/Exiles | Entered Mines 1215 | -9/Mines | Assembled infested the area 1220 | -9/Mines | Assisted by a Guerilla fighting off Assembled 1221 | -9/Mines | Core integrity fell below 20% 1236 | -9/Mines | Destroyed by D-53 Grenadier with Mini Grenade Launcher Last Messages --------------- TX-OF8(h) destroyed. Slammed into U-05 Engineer. G-47 Trooper destroyed. U-05 Engineer destroyed. R-06 Scavenger destroyed. as-98033 destroyed. as-91017 destroyed. as-28355 destroyed. The unstable cave ceiling collapses. as-11631 destroyed. K-01 Serf collects debris. as-27187 destroyed. as-25285 destroyed. as-14073 destroyed. as-30469 destroyed. as-87456 destroyed. as-66017 destroyed. The unstable cave ceiling collapses. as-68580 destroyed. Gui. Plasma Cannon destroyed. Map ----- +----------------------------------------------------+ | | | | | | | | | | | | | | | | | | | | | ?????????????????????????????????????????????? | | ?????????????????????????????????????????????? | | ????????????????????????##???????????????????? | | ???????????????????????# ???????????????????? | | ???????????????????????# "???????????????????? | | ???????????????????????# "???"""?????????????? | | ???????????????????????# ""? """?????????????? | | ???????????????????????# ?????????????? | | ???????????????????????# """ """ ????????????? | | ???????????????????????# """ """ ""??????????? | | ?????????????????????### """ """ ????????????? | | ???????????????####### # ??????????????? | | ?????????????### ????????????????? | | ?????????????# #?????????????????? | | ?????????????# ### #?????????????? | | ?????????????# %] dd@% % #?????????????? | | ?????????????# ######?????????????? | | ?????????????# #?????????????????? | | ?????????????# #?????????????????? | | ??????????? # a ####?????????????????? | | ??????????? ? # ##?????????????????????? | | ???????????? ## ####???????????????????????? | | ???????????? ??# ??????????????????????????? | | ????????????#???# ??????????????????????????? | | ????????????????? ??????????????????????????? | | ????????????????? ??????????????????????????? | | ????????????????? ??????????????????????????? | | ????????????????? ??????????????????????????? | | ????????????????? ??????????????????????????? | | ?????????????????##??????????????????????????? | | ?????????????????????????????????????????????? | | ?????????????????????????????????????????????? | | ?????????????????????????????????????????????? | | ?????????????????????????????????????????????? | | ?????????????????????????????????????????????? | | ?????????????????????????????????????????????? | | ?????????????????????????????????????????????? | | ?????????????????????????????????????????????? | | ?????????????????????????????????????????????? | | ?????????????????????????????????????????????? | +----------------------------------------------------+ Best States ------------- Heat Dissipation 25 Energy Generation 10 Energy Capacity 650 Matter Stores 223 Matter Capacity 300 Sight Range 16 Terrain Scan Density 10 Armor Coverage 150 Evasion (%) 53 Item Schematics ----------------- None Robot Schematics ------------------ None Fabricated ------------ Nothing Alien Tech Used ----------------- None Achievements -------------- Hunted Challenges ------------ None Game ------ Seed LinearCorruptionBuckler Manual? 0 Play Time 00:14:39 Cumulative 8.4 hours Start 2021.12.24 @ 19:09:21 End 2021.12.24 @ 21:21:12 Sessions 2 Manual Loads 0 Difficulty Rogue Special Mode None Game No. 13 Rogue 13 Adventurer 0 Explorer 0 Win Type - Total 0 Types 0/0/0/0/0/0/0/0/0 Lore% 13 Gallery% 21 Achievement% 14 Wizard Run 0 Options --------- ASCII 0 Keyboard 1 Movement Numpad Keybinds 0 Fullscreen 1 Font 24/Proggy Map View 76x50 Tactical HUD 0 Map Filters NONE Filters NONE Steam 1 RUN: 9382b154-c110-40f2-a576-d013cc565c0e